bitfinex-derivatives/quotes_BTCF0:USTF0_20250402
["timestamp","ask_amount","ask_price","bid_price","bid_amount"]
[1743634360160,0.3919342,82982.0,82981.0,0.2428112]
[1743634360361,0.3919342,82982.0,82981.0,0.1212112]
[1743634360562,0.0234045,82982.0,82981.0,0.1212112]
[1743634360761,0.0224045,82982.0,82981.0,0.3699112]
[1743634360960,1e-07,82982.0,82981.0,0.3699112]
[1743634361163,0.1235,82989.0,82981.0,0.24938]
[1743634361364,0.0004,82995.0,82994.0,0.1205123]
[1743634361567,0.0004,82995.0,82994.0,0.1211523]
[1743634362270,0.0004,82995.0,82994.0,0.2540523]
[1743634362770,1e-07,82995.0,82994.0,0.2540523]
[1743634362957,1e-07,82995.0,82994.0,0.4040523]
[1743634363163,1e-07,82995.0,82994.0,0.2540523]
[1743634363666,1e-07,82995.0,82994.0,0.4040523]
[1743634363970,1e-07,82995.0,82994.0,0.8137523]
[1743634364364,1e-07,82995.0,82994.0,0.6637523]
[1743634364865,1e-07,82995.0,82994.0,0.67666433]
[1743634365166,0.00018071,83003.0,82994.0,0.67666433]
[1743634365167,1e-08,83003.0,83002.0,0.1205007]
[1743634365373,1e-08,83003.0,83002.0,0.8916407]
[1743634365778,0.0004,83027.0,83015.0,0.0602406]
[1743634365963,1e-07,83027.0,83026.0,0.8420658]
[1743634366163,1e-07,83027.0,83026.0,0.9588258]
[1743634366568,1e-07,83027.0,83026.0,1.0891058]
[1743634366760,1e-07,83027.0,83026.0,0.9684058]
[1743634367974,1e-07,83027.0,83026.0,0.97764948]
[1743634368164,1e-07,83027.0,83026.0,1.12764948]
[1743634368368,1e-08,83042.0,83041.0,0.1204441]
[1743634368572,1e-08,83042.0,83041.0,0.8426841]
[1743634368773,1e-08,83042.0,83041.0,0.85527583]
[1743634369377,0.00875758,83042.0,83041.0,0.85527583]
[1743634370069,0.00875758,83042.0,83041.0,0.8426841]
[1743634370577,1e-08,83042.0,83041.0,0.8426841]
[1743634370771,0.13030001,83042.0,83041.0,0.8426841]
[1743634373372,1e-08,83042.0,83041.0,0.8426841]
[1743634373570,0.0001803,83050.0,83048.0,0.1204339]
[1743634373878,1e-07,83059.0,83058.0,0.1204194]
[1743634374175,0.47684,83095.0,83073.0,0.1203977]
[1743634374176,0.13,83074.0,83073.0,0.1203977]
[1743634374371,0.13092,83074.0,83073.0,0.8426377]
[1743634374572,0.13,83074.0,83073.0,0.8426377]
[1743634374884,0.13,83074.0,83073.0,0.4818377]
[1743634375277,0.13092,83074.0,83073.0,0.4818377]
[1743634376469,0.26192,83074.0,83073.0,0.4818377]
[1743634376979,0.3608,83112.0,83090.0,0.120373]
[1743634377181,0.0601714,83111.0,83090.0,0.481813]
[1743634377485,0.131,83105.0,83090.0,0.49470355]
[1743634377684,0.0601844,83093.0,83090.0,0.605313]
[1743634377995,0.0601783,83102.0,83090.0,0.605313]
[1743634378169,0.1253,83092.0,83090.0,0.966113]
[1743634378374,0.1253,83092.0,83090.0,0.605313]
[1743634381182,0.0004,83107.0,83090.0,0.605313]
[1743634381374,0.0004,83107.0,83090.0,1.04464]
[1743634381578,0.0004,83107.0,83106.0,0.8419499]
[1743634381780,1e-07,83107.0,83106.0,0.9585499]
[1743634381979,0.002,83122.0,83118.0,0.1203325]
[1743634382178,0.1216,83132.0,83121.0,0.4811281]
[1743634382379,0.1216,83132.0,83122.0,0.0983267]
[1743634382585,0.1259,83145.0,83122.0,0.0983267]
[1743634382586,1e-07,83123.0,83122.0,0.2302667]
[1743634383087,1e-07,83123.0,83122.0,0.0989667]
[1743634383486,1e-07,83123.0,83122.0,0.1078563]
[1743634383682,1e-07,83123.0,83122.0,0.2391563]
[1743634384189,1e-07,83123.0,83122.0,0.1078563]
[1743634384384,1e-07,83123.0,83122.0,0.2391563]
[1743634385383,1e-07,83123.0,83122.0,0.1078563]
[1743634385782,1e-07,83139.0,83138.0,0.1203035]
[1743634386078,1e-07,83139.0,83138.0,0.8425835]
[1743634387488,0.1202595,83169.0,83154.0,0.1202804]
[1743634387788,0.00108,83155.0,83154.0,0.8418804]
[1743634387990,0.00112,83155.0,83154.0,0.8425204]
[1743634388879,0.1213989,83155.0,83154.0,0.72224]
[1743634389084,0.1213989,83155.0,83154.0,0.1209204]
[1743634389285,0.1213989,83155.0,83154.0,0.1202804]
[1743634389488,0.1213989,83155.0,83154.0,0.00064]
[1743634389686,0.1202905,83147.0,83146.0,0.12047248]
[1743634389892,0.0601445,83149.0,83148.0,0.1202891]
[1743634390189,0.00064,83149.0,83148.0,0.1210091]
[1743634390389,0.1210076,83149.0,83148.0,0.1210091]
[1743634390597,0.00072,83149.0,83148.0,0.1210091]
[1743634391197,0.1210076,83149.0,83148.0,0.1210091]
[1743634391399,0.00072,83149.0,83148.0,0.1210091]
[1743634391689,0.1210076,83149.0,83148.0,0.1210091]
[1743634391990,0.00072,83149.0,83148.0,0.1210091]
[1743634392191,0.2410076,83149.0,83148.0,0.1210091]
[1743634392691,0.6018076,83149.0,83148.0,0.00072]
[1743634392993,0.6018076,83149.0,83148.0,0.1202891]
[1743634393295,0.1202905,83147.0,83146.0,0.12047108]
[1743634393489,0.12968641,83147.0,83146.0,0.12115248]
[1743634393691,0.12968641,83147.0,83146.0,0.12047248]
[1743634393894,0.13791384,83147.0,83146.0,0.00018048]
[1743634394395,0.13791384,83147.0,83146.0,0.12047248]
[1743634394583,0.01762334,83147.0,83146.0,0.12119248]
[1743634395593,0.25806743,83147.0,83146.0,0.12119248]
[1743634395787,0.24984,83147.0,83146.0,0.12119248]
[1743634396396,0.3701305,83147.0,83146.0,0.00090048]
[1743634396595,0.3701305,83147.0,83146.0,0.00018048]
[1743634397497,0.24984,83147.0,83146.0,0.12047248]
[1743634397687,0.24984,83147.0,83146.0,0.12111248]
[1743634398093,0.24984,83147.0,83146.0,0.25351248]
[1743634398295,0.25796517,83147.0,83146.0,0.25351248]
[1743634399188,0.37825567,83147.0,83146.0,0.25351248]
[1743634399799,0.13686517,83147.0,83146.0,0.25351248]
[1743634400104,0.13622517,83147.0,83146.0,0.25351248]
[1743634400310,0.00812517,83147.0,83146.0,0.25351248]
[1743634400489,0.00812517,83147.0,83146.0,0.37841248]
[1743634400694,0.1278,83153.0,83152.0,0.1202833]
[1743634401003,0.12852,83153.0,83152.0,0.1210033]
[1743634401699,1e-07,83153.0,83152.0,0.3708033]
[1743634401902,0.0004,83155.0,83154.0,0.1202804]
[1743634402203,0.0004,83155.0,83154.0,0.1211604]
[1743634403291,0.002,83163.0,83162.0,0.1202688]
[1743634403602,0.002,83163.0,83162.0,0.1210688]
[1743634404396,0.002,83163.0,83162.0,0.38842558]
[1743634405300,1e-07,83163.0,83162.0,0.38842558]
[1743634409606,0.4810675,83163.0,83162.0,0.0008]
[1743634409901,0.1211075,83163.0,83162.0,0.1210688]
[1743634410505,0.3784075,83163.0,83162.0,0.1210688]
[1743634410907,0.2536075,83163.0,83162.0,0.1210688]
[1743634411211,0.1333401,83163.0,83162.0,0.1210688]
[1743634411505,0.2581401,83163.0,83162.0,0.1210688]
[1743634411701,0.2581401,83163.0,83162.0,0.2520688]
[1743634411906,0.3784075,83163.0,83162.0,0.2520688]
[1743634412597,0.2581401,83163.0,83162.0,0.2520688]
[1743634413199,0.1333401,83163.0,83162.0,0.2520688]
[1743634413402,0.1325001,83163.0,83162.0,0.3728688]
[1743634413599,0.0008401,83163.0,83162.0,0.3728688]
[1743634413904,1e-07,83163.0,83162.0,0.3728688]
[1743634415399,0.1309,83170.0,83169.0,0.1202587]
[1743634415606,0.13178,83170.0,83169.0,0.1211387]
[1743634415801,0.13178,83170.0,83169.0,0.3790387]
[1743634416294,0.00088,83170.0,83169.0,0.3790387]
[1743634416497,0.0004,83171.0,83170.0,0.1202573]
[1743634416700,0.0004,83171.0,83170.0,0.3789573]
[1743634417408,0.0004,83171.0,83170.0,0.2523573]
[1743634417703,0.1206558,83171.0,83170.0,0.26129954]
[1743634417906,0.1214558,83171.0,83170.0,0.26129954]
[1743634418109,0.3866558,83171.0,83170.0,0.26129954]
[1743634419015,0.3866558,83171.0,83170.0,0.75722627]
[1743634419394,0.3866558,83171.0,83170.0,0.50566897]
[1743634420504,0.3866558,83171.0,83170.0,0.49672673]
[1743634422003,0.3866558,83171.0,83146.0,0.12095166]
[1743634422004,0.1202905,83147.0,83146.0,0.12095166]
[1743634422204,0.00068,83147.0,83146.0,0.24192316]
[1743634422706,0.24398,83147.0,83146.0,0.24192316]
[1743634424310,0.3642705,83147.0,83146.0,0.24192316]
[1743634425407,0.24398,83147.0,83146.0,0.24192316]
[1743634425611,0.3642705,83147.0,83146.0,0.24192316]
[1743634426000,0.12308,83147.0,83146.0,0.24192316]
[1743634426712,0.00068,83147.0,83146.0,0.24192316]
[1743634426905,0.00068,83147.0,83146.0,0.50752316]
[1743634427107,0.0004,83171.0,83167.0,0.1202616]
[1743634427312,0.36152,83168.0,83167.0,0.1202616]
[1743634427618,0.36152,83168.0,83167.0,0.1210216]
[1743634427808,0.36152,83168.0,83167.0,0.2463216]
[1743634428009,0.2463801,83168.0,83167.0,0.2463216]
[1743634428206,0.00072,83168.0,83167.0,0.2463216]
[1743634428409,0.1209801,83168.0,83167.0,0.3702216]
[1743634428614,0.1209801,83168.0,83167.0,0.2463216]
[1743634428807,0.2449801,83168.0,83167.0,0.2463216]
[1743634429003,0.12472,83168.0,83167.0,0.2463216]
[1743634429310,0.2449801,83168.0,83167.0,0.3702216]
[1743634429712,0.2449801,83168.0,83167.0,0.2463216]
[1743634429905,0.2449801,83168.0,83167.0,0.12606]
[1743634430113,0.3703801,83168.0,83167.0,0.1253]
[1743634430303,0.25012,83168.0,83155.0,0.3608]
[1743634430503,0.2405367,83166.0,83165.0,0.1202616]
[1743634430711,0.2411767,83166.0,83165.0,0.00076]
[1743634430912,0.1202775,83157.0,83156.0,0.2405526]
[1743634431113,0.1202775,83157.0,83156.0,0.1210358]
[1743634431311,0.1202775,83157.0,83156.0,0.2513358]
[1743634431515,0.3750375,83157.0,83156.0,0.2513358]
[1743634431711,0.3750375,83157.0,83156.0,0.00076]
[1743634431908,0.3750375,83157.0,83156.0,0.1210375]
[1743634432513,0.3750375,83157.0,83156.0,0.00076]
[1743634433303,0.1202789,83155.0,83154.0,0.1202799]
[1743634433509,0.1211189,83155.0,83154.0,0.1211199]
[1743634433710,0.3751189,83155.0,83154.0,0.00084]
[1743634433910,0.1804242,83154.0,83153.0,0.1202804]
[1743634434112,0.1202833,83152.0,83151.0,0.33611217]
[1743634434317,0.4817233,83152.0,83151.0,0.33687217]
[1743634434617,0.6102233,83152.0,83151.0,0.1210441]
[1743634434812,0.7327233,83152.0,83151.0,0.1210441]
[1743634435025,0.61244,83152.0,83151.0,0.1210441]
[1743634435210,0.48994,83152.0,83151.0,0.2537441]
[1743634435409,0.48994,83152.0,83151.0,0.3824441]
[1743634435916,0.48994,83152.0,83151.0,0.2537441]
[1743634435917,0.6102233,83152.0,83151.0,0.2537441]
[1743634436117,0.6102233,83152.0,83151.0,0.13346]
[1743634436505,0.1202905,83147.0,83145.0,0.12950329]
[1743634436711,0.1210505,83147.0,83146.0,0.12171356]
[1743634437114,0.1210505,83147.0,83146.0,0.25481356]
[1743634437428,0.1210505,83147.0,83146.0,0.00142156]
[1743634437715,0.1210505,83147.0,83130.0,0.00048117]
[1743634437716,0.1203137,83131.0,83130.0,0.00048117]
[1743634437910,0.4818737,83131.0,83130.0,0.00048117]
[1743634438520,0.1804784,83129.0,83128.0,0.1203178]
[1743634438710,0.1811584,83129.0,83128.0,0.1203178]
[1743634438906,0.00068,83129.0,83128.0,0.1203178]
[1743634439117,0.00068,83129.0,83128.0,0.1209978]
[1743634439412,0.4811036,83138.0,83137.0,0.120305]
[1743634439619,0.6140836,83138.0,83137.0,0.120945]
[1743634440213,0.6140836,83138.0,83137.0,0.00064]
[1743634440414,0.6140836,83138.0,83113.0,0.0601698]
[1743634440415,0.1203253,83123.0,83122.0,0.18066446]
[1743634440610,0.00068,83123.0,83122.0,0.30162706]
[1743634440812,0.1203253,83123.0,83122.0,0.18130446]
[1743634441013,0.1210053,83123.0,83122.0,0.18130446]
[1743634441209,0.3608,83131.0,83130.0,0.1203151]
[1743634441415,0.1210853,83123.0,83122.0,0.00018036]
[1743634441620,0.00064,83123.0,83122.0,0.12050706]
[1743634441821,0.1326,83130.0,83129.0,0.1203166]
[1743634442123,0.00076,83130.0,83129.0,0.1210766]
[1743634442312,0.3608,83138.0,83137.0,0.120305]
[1743634442313,0.4934,83138.0,83137.0,0.120305]
[1743634442511,0.4934,83138.0,83137.0,0.121065]
[1743634442512,0.0008,83138.0,83137.0,0.121065]
[1743634442711,0.00057932,83139.0,83138.0,0.1203035]
[1743634442919,0.12088142,83139.0,83138.0,0.2451035]
[1743634443117,0.00133932,83139.0,83138.0,0.2451035]
[1743634443310,0.00057932,83139.0,83138.0,0.3690035]
[1743634444423,0.1206789,83155.0,83154.0,0.1202804]
[1743634444630,0.1214389,83155.0,83154.0,0.1210404]
[1743634445118,0.1203006,83140.0,83139.0,0.0601503]
[1743634445427,0.1203006,83140.0,83137.0,0.6021202]
[1743634445428,0.1203035,83138.0,83137.0,0.6021202]
[1743634445723,0.1210235,83138.0,83137.0,0.2420002]
[1743634445915,0.00072,83138.0,83137.0,0.120985]
[1743634446111,0.1210235,83138.0,83137.0,0.120985]
[1743634446316,0.1210235,83138.0,83137.0,0.00068]
[1743634446511,0.1210235,83138.0,83132.0,0.1804661]
[1743634446512,0.1203108,83133.0,83132.0,0.1804661]
[1743634446716,0.1211108,83133.0,83132.0,0.1811061]
[1743634446919,0.4819108,83133.0,83132.0,0.1811061]
[1743634447227,0.0008,83133.0,83132.0,0.1811061]
[1743634447524,0.3608,83150.0,83144.0,0.1202949]
[1743634447525,0.1215,83145.0,83144.0,0.1202949]
[1743634447826,0.2425934,83145.0,83144.0,0.1202949]
[1743634448124,0.2425934,83145.0,83144.0,0.1209349]
[1743634448316,0.2425934,83145.0,83144.0,0.2515349]
[1743634449519,0.1210934,83145.0,83144.0,0.2515349]
[1743634450121,0.0008,83145.0,83144.0,0.2515349]
[1743634450321,0.1210934,83145.0,83144.0,0.2515349]
[1743634450518,0.0008,83145.0,83144.0,0.2515349]
[1743634452323,0.0004,83155.0,83154.0,0.1202804]
[1743634452521,0.0004,83155.0,83154.0,0.00076]
[1743634452522,0.1214389,83155.0,83154.0,0.00076]
[1743634452717,0.1214389,83155.0,83130.0,0.00048117]
[1743634452718,0.1203122,83132.0,83130.0,0.00048117]
[1743634453022,0.1210722,83132.0,83131.0,0.12125406]
[1743634453219,0.00076,83132.0,83131.0,0.12125406]
[1743634453524,0.1210722,83132.0,83131.0,0.00094036]
[1743634453724,0.51156,83132.0,83114.0,0.00048126]
[1743634453924,0.0601677,83117.0,83116.0,0.1203354]
[1743634454230,0.0609277,83117.0,83116.0,0.1210954]
[1743634454626,0.0609277,83117.0,83116.0,0.00076]
[1743634455033,0.1203368,83115.0,83114.0,0.12081956]
[1743634455329,0.1210968,83115.0,83114.0,0.12157956]
[1743634455723,0.2508968,83115.0,83114.0,0.12157956]
[1743634456828,0.2508968,83115.0,83114.0,0.12081956]
[1743634457029,0.2508968,83115.0,83114.0,0.12161956]
[1743634457334,0.2508968,83115.0,83112.0,0.1203398]
[1743634457335,0.1203455,83109.0,83108.0,0.12052616]
[1743634457524,0.4818655,83109.0,83108.0,0.12116616]
[1743634457831,0.4818655,83109.0,83108.0,0.09916616]
[1743634458033,0.6103655,83109.0,83108.0,0.09916616]
[1743634458228,0.7377655,83109.0,83108.0,0.09852616]
[1743634458728,1.2451934,83109.0,83099.0,0.002]
[1743634459032,0.1203832,83083.0,83070.0,0.35971345]
[1743634459232,0.4819432,83083.0,83082.0,0.00116145]
[1743634459434,0.4819432,83083.0,83082.0,0.12386145]
[1743634459626,0.36156,83083.0,83082.0,0.24424605]
[1743634459825,0.36156,83083.0,83073.0,0.00923596]
[1743634460129,0.4811948,83075.0,83066.0,0.00048154]
[1743634460322,0.4821948,83075.0,83067.0,0.1204052]
[1743634460521,0.4821948,83075.0,83066.0,0.00048154]
[1743634460724,0.3618,83075.0,83074.0,0.12057667]
[1743634460924,0.6120948,83075.0,83074.0,0.00018047]
[1743634461224,0.3618,83075.0,83074.0,0.24327667]
[1743634461533,0.4821948,83075.0,83074.0,0.12380047]
[1743634461725,0.4821948,83075.0,83074.0,0.24419667]
[1743634461935,0.3618,83075.0,83074.0,0.24419667]
[1743634462228,0.001,83075.0,83074.0,0.24419667]
[1743634462432,0.7784,83082.0,83081.0,0.1203861]
[1743634462625,0.00058047,83091.0,83081.0,0.00064]
[1743634462828,0.00130047,83091.0,83090.0,0.120373]
[1743634463024,0.00058047,83091.0,83090.0,0.121053]
[1743634463231,0.3608,83104.0,83103.0,0.1203542]
[1743634463435,0.36148,83104.0,83103.0,0.1209942]
[1743634463626,0.00068,83104.0,83103.0,0.2449942]
[1743634463829,0.1210328,83104.0,83103.0,0.2449942]
[1743634464022,0.4818328,83104.0,83103.0,0.00064]
[1743634464219,0.1203658,83095.0,83094.0,0.124]
[1743634464423,0.4818058,83095.0,83094.0,0.00064]
[1743634464619,0.4818058,83095.0,83088.0,0.0601876]
[1743634464620,0.180558,83093.0,83092.0,0.1203672]
[1743634464824,0.0601793,83100.0,83092.0,0.1203672]
[1743634465024,0.1916193,83100.0,83099.0,0.12036]
[1743634465225,0.0601835,83095.0,83092.0,0.1203672]
[1743634465427,0.0601835,83095.0,83089.0,0.0601868]
[1743634465428,0.1203759,83090.0,83089.0,0.0601867]
[1743634465727,0.00064,83090.0,83089.0,0.0608267]
[1743634466824,0.0601829,83095.0,83094.0,0.1203672]
[1743634467022,0.0608229,83095.0,83094.0,0.1210072]
[1743634467225,0.0608229,83095.0,83094.0,0.00064]
[1743634467439,0.4406916,83095.0,83094.0,0.1203672]
[1743634467631,0.26014,83095.0,83094.0,0.1210472]
[1743634467832,0.13344,83095.0,83094.0,0.1210472]
[1743634468226,0.00064,83095.0,83094.0,0.2470472]
[1743634468731,0.2470587,83100.0,83099.0,0.12036]
[1743634468932,0.2476987,83100.0,83099.0,0.121]
[1743634469331,0.12734,83100.0,83099.0,0.121]
[1743634469538,0.00064,83100.0,83099.0,0.247]
[1743634472037,0.00064,83100.0,83099.0,0.225]
[1743634473440,0.1209986,83100.0,83099.0,0.00064]
[1743634473639,0.1203759,83088.0,83087.0,0.127]
[1743634473836,0.1210159,83088.0,83087.0,0.2481374]
[1743634474335,0.1210159,83088.0,83087.0,0.1211374]
[1743634474538,0.2462159,83088.0,83087.0,0.1203774]
[1743634474741,0.3687159,83088.0,83087.0,0.1210174]
[1743634474935,0.24834,83088.0,83087.0,0.1210174]
[1743634475132,0.00064,83088.0,83087.0,0.2480174]
[1743634475836,0.1210159,83088.0,83087.0,0.2480174]
[1743634476637,0.3705159,83088.0,83087.0,0.00064]
[1743634476836,0.3705159,83088.0,83087.0,0.1203774]
[1743634477137,0.3705159,83088.0,83087.0,0.1210174]
[1743634477342,0.3705159,83088.0,83087.0,0.2535174]
[1743634477731,0.0601901,83085.0,83082.0,0.00048145]
[1743634477939,0.4811832,83083.0,83082.0,0.00048145]
[1743634478237,0.4821032,83083.0,83082.0,0.12150605]
[1743634478432,0.7316032,83083.0,83082.0,0.12086605]
[1743634478627,0.7316032,83083.0,83082.0,0.00048145]
[1743634479941,0.7316032,83083.0,83082.0,0.12086605]
[1743634480141,0.7316032,83083.0,83082.0,0.00048145]
[1743634480742,0.7316032,83083.0,83082.0,0.12086605]
[1743634481644,0.7316032,83083.0,83082.0,0.00048145]
[1743634482843,0.1203948,83075.0,83074.0,0.12057527]
[1743634483044,0.1212348,83075.0,83074.0,0.12141667]
[1743634483231,0.7322348,83075.0,83074.0,0.00102047]
[1743634483435,0.7322348,83075.0,83074.0,0.00018047]
[1743634483835,0.7322348,83075.0,83074.0,0.00082047]
[1743634484734,0.1204064,83067.0,83053.0,0.3608]
[1743634484940,0.36188,83067.0,83066.0,0.12088934]
[1743634485134,0.36188,83067.0,83066.0,0.12152934]
[1743634485135,0.4822864,83067.0,83066.0,0.12152934]
[1743634485738,0.36188,83067.0,83066.0,0.12152934]
[1743634485938,0.36188,83067.0,83066.0,0.37082934]
[1743634486139,0.00108,83067.0,83066.0,0.34882934]
[1743634486441,0.00108,83067.0,83066.0,0.70962934]
[1743634486638,0.1203977,83073.0,83072.0,0.1203991]
[1743634486838,0.12143771,83073.0,83072.0,0.1210391]
[1743634487034,0.12143771,83073.0,83072.0,0.3703391]
[1743634487743,0.00104001,83073.0,83072.0,0.3703391]
[1743634487932,0.0601922,83083.0,83072.0,0.3703391]
[1743634487933,1.5942623,83100.0,83085.0,0.1199803]
[1743634488136,0.1203647,83096.0,83090.0,0.481173]
[1743634488336,0.0601829,83095.0,83090.0,0.481853]
[1743634488538,1.1131031,83100.0,83090.0,0.481853]
[1743634489050,1.2334622,83100.0,83090.0,0.481853]
[1743634489235,1.1131031,83100.0,83090.0,0.481853]
[1743634489432,0.060185,83093.0,83090.0,0.481853]
[1743634489642,0.12095207,83091.0,83090.0,0.00068]
[1743634489845,0.48175207,83091.0,83090.0,0.121053]
[1743634490146,0.48247207,83091.0,83090.0,0.121053]
[1743634490350,0.73497207,83091.0,83090.0,0.121053]
[1743634490732,0.73497207,83091.0,83090.0,0.00068]
[1743634490945,0.1203846,83084.0,83083.0,0.1203828]
[1743634491145,0.1211046,83084.0,83083.0,0.1210228]
[1743634491346,0.3736046,83084.0,83083.0,0.1210228]
[1743634491851,0.00072,83084.0,83083.0,0.2414034]
[1743634492054,0.0601876,83089.0,83083.0,0.00064]
[1743634492259,0.1203861,83081.0,83080.0,0.00018047]
[1743634492441,0.1204064,83067.0,83051.0,0.1252]
[1743634492641,0.4821264,83067.0,83066.0,0.21694961]
[1743634493342,0.7350264,83067.0,83066.0,0.33735741]
[1743634495051,0.7350264,83067.0,83066.0,0.12152934]
[1743634495350,0.7350264,83067.0,83066.0,0.12088934]
[1743634495549,0.7350264,83067.0,83066.0,0.12152934]
[1743634495747,0.7350264,83067.0,83066.0,0.12088934]
[1743634495947,0.49312,83067.0,83066.0,0.12088934]
[1743634496155,0.36172,83067.0,83066.0,0.12152934]
[1743634496450,0.36172,83067.0,83066.0,0.38192934]
[1743634496451,0.4821264,83067.0,83066.0,0.38192934]
[1743634496648,0.7302264,83067.0,83066.0,0.00112154]
[1743634496843,0.7302264,83067.0,83066.0,0.00048154]
[1743634497245,1.17742,83067.0,83007.0,0.49824105]
[1743634497446,0.12046,83030.0,83007.0,0.49824105]
[1743634497638,0.120476,83019.0,83008.0,0.1284]
[1743634497952,0.120492,83008.0,83007.0,0.49824105]
[1743634498153,0.481292,83008.0,83007.0,0.49888105]
[1743634498349,0.1205079,82997.0,82982.0,0.00904803]
[1743634498648,0.4813079,82997.0,82996.0,0.63930561]
[1743634498846,0.4813079,82997.0,82996.0,0.75981501]
[1743634498847,0.36212,82997.0,82996.0,0.75981501]
[1743634499255,0.3608,82997.0,82996.0,0.75981501]
[1743634500351,0.4813079,82997.0,82996.0,0.75981501]
[1743634500551,0.3608,82997.0,82996.0,0.75981501]
[1743634501749,0.3608,82997.0,82996.0,0.63930561]
[1743634501953,0.4813079,82997.0,82996.0,0.63930561]
[1743634502152,0.060256,82995.0,82988.0,0.00012097]
[1743634502348,0.1205239,82986.0,82985.0,0.25551143]
[1743634502652,0.1205239,82986.0,82970.0,0.0004821]
[1743634502653,0.3626,82986.0,82970.0,0.0004821]
[1743634502852,0.3608,82971.0,82970.0,0.1210292]
[1743634503054,0.4831057,82971.0,82970.0,0.0004821]
[1743634503949,0.36256,82971.0,82970.0,0.2507292]
[1743634504352,0.36256,82971.0,82970.0,0.3827292]
[1743634505062,0.54174218,82971.0,82970.0,0.3827292]
[1743634505251,0.54174218,82971.0,82970.0,0.2621821]
[1743634505446,0.79214218,82971.0,82970.0,0.1301821]
[1743634506346,0.54174218,82971.0,82970.0,0.1301821]
[1743634506555,0.55427117,82971.0,82970.0,0.0004821]
[1743634506860,0.1205689,82955.0,82954.0,9e-08]
[1743634507159,0.95944891,82955.0,82954.0,9e-08]
[1743634507762,1.63614891,82955.0,82954.0,9e-08]
[1743634508964,0.1205907,82940.0,82939.0,0.14831624]
[1743634509265,0.4813907,82940.0,82939.0,0.14831624]
[1743634509561,0.4813907,82940.0,82938.0,0.13168229]
[1743634509562,0.1205922,82939.0,82938.0,0.13168229]
[1743634509756,0.5812522,82939.0,82938.0,0.00048229]
[1743634509951,0.3814522,82939.0,82938.0,0.00048229]
[1743634510149,0.4970122,82939.0,82938.0,0.00048229]
[1743634511363,0.94402,82939.0,82901.0,0.1229]
[1743634511571,0.94402,82939.0,82887.0,0.3608]
[1743634511572,0.7216,82923.0,82887.0,0.3608]
[1743634511761,0.7216,82923.0,82871.0,0.3608]
[1743634511762,0.1206592,82896.0,82895.0,0.1206549]
[1743634511953,0.00172001,82896.0,82886.0,0.1211]
[1743634512153,0.00172001,82896.0,82895.0,0.1206562]
[1743634512367,0.1206582,82894.0,82893.0,0.1206582]
[1743634512570,0.1206553,82896.0,82895.0,0.1206562]
[1743634512772,0.1224553,82896.0,82895.0,0.1206562]
[1743634512962,0.1224553,82896.0,82895.0,0.2464562]
[1743634513166,0.1206591,82893.0,82892.0,0.1206596]
[1743634513363,0.48317911,82893.0,82892.0,0.1206596]
[1743634513564,0.48317911,82893.0,82892.0,0.2413196]
[1743634513868,0.36252001,82893.0,82892.0,0.2413196]
[1743634514067,0.54351161,82893.0,82889.0,0.0603324]
[1743634514272,0.36252001,82893.0,82892.0,0.1206591]
[1743634514458,0.48317911,82893.0,82892.0,0.1206591]
[1743634515661,0.1206649,82890.0,82889.0,0.120664]
[1743634515856,0.18271761,82890.0,82889.0,0.120664]
[1743634516870,0.1206664,82888.0,82885.0,0.0603353]
[1743634517063,0.060337,82883.0,82882.0,0.1206722]
[1743634517263,0.062137,82883.0,82882.0,0.1206722]
[1743634517970,0.062137,82883.0,82880.0,0.0603384]
[1743634518167,0.0018,82883.0,82875.0,0.18766115]
[1743634518367,0.0018,82883.0,82882.0,0.1206733]
[1743634518965,0.0018,82883.0,82882.0,1.6206733]
[1743634519163,0.00018094,82891.0,82890.0,0.1206635]
[1743634519366,0.00190095,82891.0,82890.0,0.1206635]
[1743634519566,0.0004,82899.0,82898.0,0.1206518]
[1743634519770,0.3608,82911.0,82897.0,0.1908264]
[1743634520072,0.0603225,82905.0,82904.0,0.1809551]
[1743634520274,0.06152251,82905.0,82904.0,0.1815951]
[1743634520972,0.06152251,82905.0,82904.0,0.00064]
[1743634521171,0.0603292,82894.0,82893.0,0.1206577]
[1743634521367,0.4224892,82894.0,82893.0,0.1212977]
[1743634521576,0.5431469,82894.0,82893.0,0.1212977]
[1743634521871,0.4224892,82894.0,82893.0,0.1212977]
[1743634522171,0.4224892,82894.0,82888.0,0.0603332]
[1743634522172,0.060339,82881.0,82876.0,0.0603412]
[1743634522377,0.06189901,82881.0,82880.0,0.120678]
[1743634522574,0.36236001,82881.0,82880.0,0.121358]
[1743634522878,0.48303661,82881.0,82880.0,0.121358]
[1743634523576,0.48303661,82881.0,82880.0,0.00068]
[1743634524077,0.48303661,82881.0,82880.0,0.121358]
[1743634524278,0.48303661,82881.0,82880.0,0.242858]
[1743634525170,0.48303661,82881.0,82874.0,0.00048266]
[1743634525377,0.4814853,82875.0,82874.0,0.00048266]
[1743634525678,0.48324531,82875.0,82874.0,0.00048266]
[1743634527369,0.36256001,82875.0,82874.0,0.00048266]
[1743634527575,0.48324531,82875.0,82874.0,0.00048266]
[1743634527771,0.1207086,82859.0,82847.0,0.1207256]
[1743634527971,0.48326861,82859.0,82844.0,0.2347]
[1743634528174,0.48326861,82859.0,82845.0,0.0603641]
[1743634528371,0.48326861,82859.0,82854.0,0.0603578]
[1743634528575,0.60396861,82859.0,82856.0,0.1207118]
[1743634528776,0.60396861,82859.0,82854.0,0.1207149]
[1743634529277,0.60396861,82859.0,82852.0,0.2414356]
[1743634529585,0.60396861,82859.0,82853.0,0.120717]
[1743634529975,0.0603586,82854.0,82850.0,0.0603607]
[1743634530177,0.1207232,82849.0,82848.0,0.0603616]
[1743634530377,0.1207232,82849.0,82842.0,0.00048284]
[1743634530378,0.1207319,82843.0,82842.0,0.00048284]
[1743634530674,0.48329191,82843.0,82842.0,0.12121624]
[1743634531381,0.48329191,82843.0,82842.0,0.00048284]
[1743634531679,0.60739191,82843.0,82842.0,0.12121624]
[1743634532574,0.60739191,82843.0,82842.0,0.00048284]
[1743634532981,0.60739191,82843.0,82842.0,0.12121624]
[1743634533480,0.36256001,82843.0,82842.0,0.12121624]
[1743634533680,0.36256001,82843.0,82842.0,0.13014723]
[1743634533983,0.4815319,82843.0,82842.0,0.13014723]
[1743634534184,0.48329191,82843.0,82842.0,0.13014723]
[1743634534983,0.36256001,82843.0,82842.0,0.13014723]
[1743634535174,0.00176001,82843.0,82842.0,0.13014723]
[1743634535485,0.2526,82850.0,82849.0,0.1207232]
[1743634535675,0.00180001,82850.0,82849.0,0.1207232]
[1743634536380,0.22403241,82856.0,82855.0,0.1207145]
[1743634537275,0.35103241,82856.0,82855.0,0.1207145]
[1743634537784,0.247713,82856.0,82855.0,0.1207145]